fUST/lending_fUST_20250820
["ID","MTS","AMOUNT","RATE_DAILY","PERIOD"]
[380292175,1755638752503,-1006.51757413,0.00020525,2]
[380292176,1755638752529,-480.0,0.00020567,2]
[380292177,1755638752553,-40.86416536,0.00020567,2]
[380292178,1755638838093,-335.72945769,0.00019471,2]
[380292181,1755638854089,-144.27054231,0.00019471,2]
[380292182,1755638854116,-480.0,0.00019522,2]
[380292183,1755638854141,-465.3274664,0.00019745,2]
[380292184,1755638854164,-187.221517,0.00019863,2]
[380292185,1755638854188,-439.13583464,0.00020567,2]
[380292186,1755638854211,-446.12,0.00020617,2]
[380292187,1755638854238,-480.0,0.00020618,2]
[380292188,1755638854265,-3000.0,0.00020644,2]
[380292189,1755638854287,-300.0,0.00020645,2]
[380292190,1755638854310,-12685.85563623,0.00020646,2]
[380292191,1755638854333,-215.79176414,0.00020648,2]
[380292192,1755638854354,-417.15472785,0.00020648,2]
[380292193,1755638854376,-2917.95410957,0.00020725,2]
[380292194,1755638854400,-375.88899365,0.00020741,2]
[380292195,1755638854422,-160.0,0.00020741,2]
[380292196,1755638854443,-528.6845513,0.00020741,2]
[380292197,1755638854463,-216.8835046,0.00020741,2]
[380292198,1755638854484,-160.0,0.00020741,2]
[380292199,1755638854505,-843.93972674,0.00020741,2]
[380292200,1755638854525,-4000.0,0.00020748,2]
[380292201,1755638854547,-480.0,0.00020841,2]
[380292202,1755638854568,-5000.0,0.00020846,2]
[380292203,1755638854588,-442.75160345,0.00020867,2]
[380292204,1755638854633,-480.0,0.00020892,2]
[380292205,1755638854655,-2773.1548498,0.00020949,2]
[380292206,1755638854677,-6000.0,0.00020996,2]
[380292207,1755638854697,-6000.0,0.00021042,2]
[380292208,1755638854724,-300.0,0.00021058,20]
[380292209,1755638854750,-300.0,0.00021058,20]
[380292210,1755638854775,-300.0,0.00021058,20]
[380292211,1755638854801,-300.0,0.00021058,20]
[380292212,1755638854825,-300.0,0.00021058,20]
[380292213,1755638854850,-300.0,0.00021058,20]
[380292214,1755638854875,-300.0,0.00021058,20]
[380292215,1755638854901,-300.0,0.00021058,20]
[380292216,1755638854928,-300.0,0.00021058,20]
[380292217,1755638854953,-300.0,0.00021058,20]
[380292218,1755638854978,-300.0,0.00021058,20]
[380292219,1755638855004,-300.0,0.00021058,20]
[380292220,1755638855030,-300.0,0.00021058,20]
[380292221,1755638855056,-300.0,0.00021058,20]
[380292222,1755638855081,-300.0,0.00021058,20]
[380292223,1755638855104,-480.0,0.00021115,2]
[380292224,1755638855130,-2917.95410957,0.00021138,2]
[380292226,1755638855155,-598.07698646,0.00021166,2]
[380292227,1755638855175,-7000.0,0.00021182,2]
[380292228,1755638855195,-160.0,0.000212,2]
[380292229,1755638855215,-7000.0,0.00021247,2]
[380292230,1755638855246,-600.0,0.00021262,20]
[380292231,1755638855266,-8000.0,0.00021341,3]
[380292232,1755638855289,-480.0,0.00021389,2]
[380292233,1755638855315,-8000.0,0.00021482,2]
[380292234,1755638855337,-2917.95410957,0.00021551,2]
[380292235,1755638855359,-271.94183803,0.00021663,2]
[380292236,1755638855380,-260.0,0.00021748,2]
[380292237,1755638855400,-1329.8162707,0.00021918,7]
[380292238,1755638855423,-2917.95410957,0.00021963,2]
[380292239,1755638855444,-1574.43,0.00022,7]
[380292241,1755638855465,-179.0,0.00022,2]
[380292242,1755638855487,-315.77513905,0.00022175,2]
[380292243,1755638855508,-1690.45,0.00022276,10]
[380292244,1755638855529,-1807.24,0.00022286,10]
[380292245,1755638855550,-360.0,0.00022296,2]
[380292246,1755638855573,-2917.95410957,0.00022376,2]
[380292247,1755638855593,-420.0,0.00022465,2]
[380292248,1755638855614,-154.248594,0.00022596,2]
[380292249,1755638855636,-2917.95410957,0.00022789,2]
[380292250,1755638855656,-460.0,0.00022844,2]
[380292251,1755638855676,-160.0,0.00023,2]
[380292252,1755638855697,-432.1534747,0.00023178,2]
[380292253,1755638855717,-432.1534747,0.00023178,2]
[380292254,1755638855736,-432.1534747,0.00023178,2]
[380292255,1755638855759,-2917.95410957,0.00023201,2]
[380292256,1755638855785,-720.0,0.00023388,20]
[380292257,1755638855808,-560.0,0.00023392,2]
[380292258,1755638855831,-2917.95410957,0.00023614,2]
[380292259,1755638855852,-168.0,0.00023626,2]
[380292260,1755638855874,-153.0,0.00023726,2]
[380292261,1755638855895,-1161.7879882,0.00023726,2]
[380292262,1755638855916,-153.0,0.00023726,2]
[380292263,1755638855937,-580.8939941,0.00023726,2]
[380292264,1755638855958,-580.8939941,0.00023778,2]
[380292265,1755638855977,-1200.0,0.00023825,2]
[380292266,1755638855997,-1574.43,0.000239,7]
[380292267,1755638856018,-660.0,0.0002394,2]
[380292268,1755638856039,-215.79176414,0.00024,3]
[380292269,1755638856062,-2917.95410957,0.00024027,2]
[380292270,1755638856084,-154.248594,0.00024097,2]
[380292271,1755638856105,-432.1534747,0.00024137,2]
[380292272,1755638856125,-432.1534747,0.00024137,2]
[380292273,1755638856147,-432.1534747,0.00024137,2]
[380292274,1755638856168,-432.1534747,0.00024137,2]
[380292275,1755638856189,-432.1534747,0.00024137,2]
[380292276,1755638856210,-432.1534747,0.00024137,2]
[380292277,1755638856231,-432.1534747,0.00024137,2]
[380292278,1755638856257,-432.1534747,0.00024137,2]
[380292279,1755638856279,-432.1534747,0.00024137,2]
[380292280,1755638856299,-432.1534747,0.00024137,2]
[380292281,1755638856324,-353.0408597,0.00024137,2]
[380292282,1755638856347,-432.1534747,0.00024137,2]
[380292283,1755638856369,-432.1534747,0.00024137,2]
[380292284,1755638856391,-432.1534747,0.00024137,2]
[380292285,1755638856412,-432.1534747,0.00024137,2]
[380292286,1755638856434,-432.1534747,0.00024137,2]
[380292287,1755638856578,-431.9034523,0.00024137,2]
[380292288,1755638856605,-293.2413456,0.00024152,2]
[380292289,1755638856626,-574.09485649,0.000242,2]
[380292290,1755638856646,-250.0,0.0002429,2]
[380292291,1755638856667,-875.14,0.00024298,7]
[380292292,1755638856688,-1000.0,0.000243,2]
[380292293,1755638856708,-1000.0,0.000243,2]
[380292294,1755638856728,-1000.0,0.000243,2]
[380292295,1755638856748,-1000.0,0.000243,2]
[380292296,1755638856770,-1000.0,0.000243,2]
[380292297,1755638856790,-1000.0,0.000243,2]
[380292298,1755638856814,-5824.35,0.000243,7]
[380292299,1755638856834,-528.6845513,0.000243,7]
[380292300,1755638856854,-160.0,0.000243,7]
[380292301,1755638856875,-843.93972674,0.000243,7]
[380292302,1755638856895,-216.8835046,0.000243,7]
[380292303,1755638856916,-160.0,0.000243,7]
[380292304,1755638856937,-417.15472785,0.000243,7]
[380292305,1755638856957,-157.701741,0.000243,3]
[380292306,1755638856977,-215.79176414,0.000243,7]
[380292307,1755638856999,-232.21311493,0.000243,7]
[380292308,1755638857021,-375.88899365,0.000243,7]
[380292309,1755638857041,-574.09485646,0.0002435,2]
[380292310,1755638857063,-875.14,0.00024398,7]
[380292311,1755638857083,-972.0,0.00024418,2]
[380292312,1755638857103,-637.0,0.00024418,2]
[380292313,1755638857123,-2153.0,0.00024418,2]
[380292314,1755638857143,-270.873,0.00024418,2]
[380292315,1755638857164,-423.867,0.00024418,2]
[380292316,1755638857184,-187.221517,0.00024429,2]
[380292317,1755638857206,-2917.95410957,0.00024439,2]
[380292318,1755638857227,-587.0,0.00024446,2]
[380292319,1755638857251,-760.0,0.00024488,2]
[380292320,1755638857273,-875.14,0.00024498,7]
[380292321,1755638857295,-574.09485646,0.000245,2]
[380292322,1755638857319,-168.0,0.00024539,2]
[380292323,1755638857339,-293.8943201,0.00024548,2]
[380292324,1755638857359,-293.8943201,0.00024548,2]
[380292325,1755638857379,-293.8943201,0.00024548,2]
[380292326,1755638857400,-293.8943201,0.00024548,2]
[380292327,1755638857420,-580.8939941,0.00024548,2]
[380292328,1755638857441,-160.842982,0.00024548,2]
[380292329,1755638857461,-580.8939941,0.00024548,2]
[380292330,1755638857481,-293.8943201,0.00024548,2]
[380292331,1755638857502,-293.8943201,0.00024548,2]
[380292332,1755638857522,-160.842982,0.00024548,2]
[380292333,1755638857542,-580.8939941,0.00024548,2]
[380292334,1755638857562,-293.8943201,0.00024548,2]
[380292335,1755638857583,-160.842982,0.00024548,2]
[380292336,1755638857603,-153.0,0.00024548,2]
[380292337,1755638857623,-580.8939941,0.00024548,2]
[380292338,1755638857643,-293.8943201,0.00024548,2]
[380292339,1755638857663,-160.842982,0.00024548,2]
[380292340,1755638857684,-580.8939941,0.00024548,2]
[380292341,1755638857705,-293.8943201,0.00024548,2]
[380292342,1755638857726,-153.0,0.00024548,2]
[380292343,1755638857746,-160.842982,0.00024548,2]
[380292344,1755638857767,-580.8939941,0.00024548,2]
[380292345,1755638857787,-160.842982,0.00024548,2]
[380292346,1755638857807,-293.8943201,0.00024548,2]
[380292347,1755638857827,-580.8939941,0.00024548,2]
[380292348,1755638857847,-293.8943201,0.00024548,2]
[380292349,1755638857870,-160.842982,0.00024548,2]
[380292350,1755638857890,-580.8939941,0.00024548,2]
[380292351,1755638857910,-293.8943201,0.00024548,2]
[380292352,1755638857932,-580.8939941,0.00024548,2]
[380292353,1755638857953,-160.842982,0.00024548,2]
[380292354,1755638857973,-160.842982,0.00024548,2]
[380292355,1755638857993,-293.8943201,0.00024548,2]
[380292356,1755638858017,-548.8521059,0.00024548,2]
[380292357,1755638858037,-293.8943201,0.00024548,2]
[380292358,1755638858057,-160.842982,0.00024548,2]
[380292359,1755638858078,-293.8943201,0.00024548,2]
[380292360,1755638858098,-160.842982,0.00024548,2]
[380292361,1755638858119,-160.842982,0.00024548,2]
[380292362,1755638858140,-293.8943201,0.00024548,2]
[380292363,1755638858161,-160.842982,0.00024548,2]
[380292364,1755638858182,-293.8943201,0.00024548,2]
[380292365,1755638858202,-160.842982,0.00024548,2]
[380292366,1755638858223,-160.842982,0.00024548,2]
[380292367,1755638858247,-153.0,0.00024548,2]
[380292368,1755638858268,-293.8943201,0.00024548,2]
[380292369,1755638858291,-293.8943201,0.00024548,2]
[380292370,1755638858312,-160.842982,0.00024548,2]
[380292371,1755638858334,-293.8943201,0.00024548,2]
[380292372,1755638858354,-153.0,0.00024548,2]
[380292373,1755638858375,-160.842982,0.00024548,2]
[380292374,1755638858395,-160.842982,0.00024548,2]
[380292375,1755638858415,-293.8943201,0.00024548,2]
[380292376,1755638858436,-160.842982,0.00024548,2]
[380292377,1755638858457,-293.8943201,0.00024548,2]
[380292378,1755638858477,-153.0,0.00024548,2]
[380292379,1755638858497,-293.8943201,0.00024548,2]
[380292380,1755638858518,-160.842982,0.00024548,2]
[380292381,1755638858539,-160.842982,0.00024548,2]
[380292382,1755638858559,-293.8943201,0.00024548,2]
[380292383,1755638858579,-153.0,0.00024548,2]
[380292384,1755638858599,-160.842982,0.00024548,2]
[380292385,1755638858617,-293.8943201,0.00024548,2]
[380292386,1755638858637,-160.842982,0.00024548,2]
[380292387,1755638858657,-293.8943201,0.00024548,2]
[380292388,1755638858678,-153.0,0.00024548,2]
[380292389,1755638858699,-293.8943201,0.00024548,2]
[380292390,1755638858720,-160.842982,0.00024548,2]
[380292391,1755638858740,-160.842982,0.00024548,2]
[380292392,1755638858760,-293.8943201,0.00024548,2]
[380292393,1755638858780,-160.842982,0.00024548,2]
[380292394,1755638858800,-293.8943201,0.00024548,2]
[380292395,1755638858820,-293.8943201,0.00024548,2]
[380292396,1755638858840,-160.842982,0.00024548,2]
[380292397,1755638858860,-293.8943201,0.00024548,2]
[380292398,1755638858880,-160.842982,0.00024548,2]
[380292399,1755638858900,-160.842982,0.00024548,2]
[380292400,1755638858919,-293.8943201,0.00024548,2]
[380292401,1755638858940,-875.14,0.00024598,7]
[380292402,1755638858960,-293.8943201,0.000246,2]
[380292403,1755638858980,-10605.35757153,0.000246,7]
[380292404,1755638926372,1133.89624888,0.00018,2]
[380292411,1755638970109,-1855.93977213,0.0001881,2]
[380292412,1755638970130,-35973.556327,0.00019,2]
[380292413,1755638970155,-300.0,0.00019379,20]
[380292414,1755638970179,-300.0,0.00019379,20]
[380292415,1755638970202,-300.0,0.00019379,20]
[380292416,1755638970226,-300.0,0.00019379,20]
[380292417,1755638970249,-300.0,0.00019379,20]
[380292418,1755638970279,-300.0,0.00019379,20]
[380292419,1755638970301,-300.0,0.00019379,20]
[380292420,1755638970323,-300.0,0.00019379,20]
[380292421,1755638970347,-300.0,0.00019379,20]
[380292422,1755638970371,-300.0,0.00019379,20]
[380292423,1755638970393,-300.0,0.00019379,20]
[380292424,1755638970415,-300.0,0.00019379,20]
[380292425,1755638970439,-300.0,0.00019379,20]
[380292426,1755638970461,-300.0,0.00019379,20]
[380292427,1755638970485,-300.0,0.00019379,20]
[380292428,1755638970507,-480.0,0.00019521,2]
[380292429,1755638970530,-600.0,0.00019766,20]
[380292430,1755638970552,-500.0,0.00020867,2]
[380292431,1755638970573,-500.0,0.00020867,2]
[380292432,1755638970594,-160.58922772,0.00020867,2]
[380292433,1755638970615,-232.21311493,0.00020867,2]
[380292434,1755638970636,-375.88899365,0.00020867,2]
[380292435,1755638970656,-160.0,0.00020867,2]
[380292436,1755638970679,-216.8835046,0.00020867,2]
[380292437,1755638970699,-160.0,0.00020867,2]
[380292438,1755638970719,-843.93972674,0.00020867,2]
[380292439,1755638970739,-430.74283239,0.000215,2]
[380292479,1755639031848,-9013.48564889,0.000215,2]
[380292481,1755639031858,-215.79176414,0.000215,2]
[380292483,1755639031867,-300.0,0.00021929,20]
[380292485,1755639031877,-300.0,0.00021929,20]
[380292487,1755639031887,-64.4805392,0.00021929,20]
[380292524,1755639039569,-235.5194608,0.00021929,20]
[380292525,1755639039579,-300.0,0.00021929,20]
[380292526,1755639039588,-140.31967648,0.00021929,20]
[380292527,1755639039599,-159.68032352,0.00021929,20]
[380292528,1755639039608,-300.0,0.00021929,20]
[380292529,1755639039617,-300.0,0.00021929,20]
[380292530,1755639039626,-300.0,0.00021929,20]
[380292531,1755639039635,-300.0,0.00021929,20]
[380292532,1755639039644,-300.0,0.00021929,20]
[380292533,1755639039653,-300.0,0.00021929,20]
[380292534,1755639039662,-300.0,0.00021929,20]
[380292535,1755639039671,-300.0,0.00021929,20]
[380292536,1755639039680,-300.0,0.00021929,20]
[380292537,1755639039689,-300.0,0.00021929,20]
[380292538,1755639039698,-179.0,0.00022,2]
[380292539,1755639039707,-300.0,0.00022979,2]
[380292540,1755639039716,-2600.69346541,0.0002298,2]
[380292541,1755639039727,-5971.47960803,0.0002298,2]
[380292542,1755639039736,-160.0,0.00023,2]
[380292543,1755639039745,-1000.0,0.000235,2]
[380292544,1755639039754,-1408.7,0.0002359,10]
[380292545,1755639039763,-1173.92,0.0002359,10]
[380292546,1755639039773,-978.27,0.0002359,10]
[380292547,1755639039782,-181702.74534028,0.000236,2]
[380292548,1755639039791,-1259.54,0.000236,7]
[380292549,1755639039800,-12303.32,0.000236,7]
[380292550,1755639039809,-215.79176414,0.000236,7]
[380292551,1755639039818,-229.6379426,0.00023626,2]
[380292552,1755639039827,-160.92920943,0.00023709,2]
[380292553,1755639039836,-1609.29209431,0.00023723,2]
[380292555,1755639039845,-580.8939941,0.00023726,2]
[380292556,1755639039854,-1609.29209431,0.00023765,2]
[380292557,1755639039863,-160.92920943,0.0002377,2]
[380292558,1755639039871,-1100.0,0.00023825,2]
[380292559,1755639039880,-180.82195,0.00023862,2]
[380292560,1755639039889,-229.63794258,0.00023925,2]
[380292561,1755639039898,-546.11053597,0.00023925,2]
[380292562,1755639039907,-1701.74679685,0.00024,2]
[380292563,1755639039917,-456.11087569,0.00024,2]
[380292564,1755639039926,-600.0,0.00024071,20]
[380292565,1755639039935,-342.1149032,0.00024152,2]
[380292566,1755639039945,-229.63794258,0.00024224,2]
[380292567,1755639039955,-305.0,0.0002426,2]
[380292568,1755639039964,-213.63565931,0.00024467,2]
[380292569,1755639039974,-660.13825084,0.000245,2]
[380292570,1755639039983,-229.63794258,0.00024522,2]
[380292571,1755639039992,-160.842982,0.00024548,2]
[380292572,1755639040001,-293.8943201,0.00024548,2]
[380292573,1755639040011,-293.8943201,0.00024548,2]
[380292574,1755639040020,-160.842982,0.00024548,2]
[380292575,1755639040029,-716.6420042,0.00024548,2]
[380292576,1755639040039,-160.842982,0.00024548,2]
[380292577,1755639040048,-160.842982,0.00024548,2]
[380292578,1755639040057,-293.8943201,0.00024548,2]
[380292579,1755639040066,-305.0,0.00024564,2]
[380292580,1755639040075,-419.4806457,0.000246,2]
[380292581,1755639040085,-321.685964,0.000246,2]
[380292582,1755639040094,-500.0,0.00024649,2]
[380292583,1755639040103,-264.35522742,0.00024649,2]
[380292584,1755639040113,-390939.60251135,0.0002465,2]
[380292585,1755639040122,-305.0,0.00024651,2]
[380292586,1755639040131,-158.7577131,0.00024665,20]
[380292587,1755639040141,-151.0,0.00024665,20]
[380292588,1755639040150,-151.0,0.00024665,20]
[380292589,1755639040159,-245.0,0.00024665,20]
[380292590,1755639040168,-151.55192868,0.00024665,20]
[380292591,1755639040178,-151.0,0.00024665,20]
[380292592,1755639040187,-151.0,0.00024665,20]
[380292593,1755639040196,-151.0,0.00024665,20]
[380292595,1755639040206,-151.0,0.00024665,20]
[380292597,1755639040215,-151.0,0.00024665,20]
[380292599,1755639040224,-153.91704026,0.00024665,20]
[380292600,1755639040233,-151.0,0.00024665,20]
[380292601,1755639040242,-151.0,0.00024665,20]
[380292602,1755639040251,-151.0,0.00024665,20]
[380292603,1755639040260,-151.0,0.00024665,20]
[380292604,1755639040270,-151.0,0.00024665,20]
[380292605,1755639040280,-151.0,0.00024665,20]
[380292606,1755639040291,-151.0,0.00024665,20]
[380292607,1755639040300,-151.0,0.00024665,20]
[380292608,1755639040309,-875.14,0.00024698,7]
[380292609,1755639040318,-12685.85563623,0.000247,7]
[380292610,1755639040329,-160.0,0.000247,7]
[380292611,1755639040338,-1721.38835963,0.000247,2]
[380292612,1755639040348,-843.93972674,0.000247,7]
[380292613,1755639040358,-216.8835046,0.000247,7]
[380292614,1755639040367,-32559.44,0.000247,2]
[380292615,1755639040376,-160.0,0.000247,7]
[380292616,1755639040386,-160.0,0.000247,7]
[380292617,1755639040395,-24044.77690461,0.000247,3]
[380292618,1755639040404,-500.0,0.00024773,2]
[380292620,1755639040413,-423.52968532,0.00024773,2]
[380292621,1755639040422,-500.0,0.00024773,2]
[380292622,1755639040431,-500.0,0.00024773,2]
[380292623,1755639040440,-500.0,0.00024773,2]
[380292624,1755639040450,-1261.83745564,0.0002478,2]
[380292625,1755639040459,-875.14,0.00024798,7]
[380292626,1755639040469,-916.0,0.00024799,2]
[380292627,1755639040479,-152.21211499,0.00024799,2]
[380292629,1755639040488,-151.0,0.00024799,2]
[380292631,1755639040497,-151.0,0.00024799,2]
[380292632,1755639040506,-151.0,0.00024799,2]
[380292633,1755639040515,-151.0,0.00024799,2]
[380292634,1755639040524,-228.91242582,0.00024799,2]
[380292635,1755639040533,-151.0,0.00024799,2]
[380292636,1755639040542,-151.0,0.00024799,2]
[380292637,1755639040551,-151.0,0.00024799,2]
[380292638,1755639040560,-151.0,0.00024799,2]
[380292639,1755639040570,-151.0,0.00024799,2]
[380292640,1755639040579,-500.0,0.00024799,2]
[380292641,1755639040590,-151.0,0.00024799,2]
[380292642,1755639040599,-151.0,0.00024799,2]
[380292643,1755639040609,-151.0,0.00024799,2]
[380292644,1755639040618,-151.0,0.00024799,2]
[380292645,1755639040627,-151.0,0.00024799,2]
[380292646,1755639040635,-151.0,0.00024799,2]
[380292647,1755639040644,-370000.0,0.000248,2]
[380292648,1755639040653,-929.13558481,0.000248,2]
[380292649,1755639040662,-3712.82579688,0.000248,2]
[380292650,1755639040671,-284.04408466,0.000248,2]
[380292651,1755639040681,-1136.17633863,0.000248,2]
[380292652,1755639040690,-2556.39676193,0.000248,2]
[380292653,1755639040699,-4544.70535453,0.000248,2]
[380292654,1755639040708,-7094.00101434,0.000248,2]
[380292655,1755639040718,-53337.68939512,0.000248,2]
[380292656,1755639040731,-19618.24507828,0.000248,2]
[380292657,1755639040740,-4659.48,0.000248,7]
[380292658,1755639040749,-229.63794258,0.00024821,2]
[380292659,1755639040759,-153.0,0.00024822,2]
[380292660,1755639040768,-153.0,0.00024822,2]
[380292661,1755639040777,-153.0,0.00024822,2]
[380292662,1755639040787,-417.1223661,0.00024822,2]
[380292663,1755639040796,-153.0,0.00024822,2]
[380292664,1755639040805,-153.0,0.00024822,2]
[380292665,1755639040814,-2917.95410957,0.00024852,2]
[380292666,1755639040823,-500.0,0.00024873,2]
[380292667,1755639040832,-500.0,0.00024873,2]
[380292668,1755639040841,-150.0,0.00024873,2]
[380292669,1755639040851,-150.0,0.00024873,2]
[380292670,1755639040860,-12052.46092188,0.0002489,2]
[380292671,1755639041075,-37.30327308,0.0002489,2]
[380292685,1755639044046,-160.842982,0.00024548,2]
[380292686,1755639044055,-88690.2922196,0.0002489,2]
[380292687,1755639044067,-8653.84529544,0.0002489,2]
[380292688,1755639044076,-305.0,0.00024892,2]
[380292689,1755639044086,-875.14,0.00024898,7]
[380292690,1755639044095,-153.0,0.000249,3]
[380292691,1755639044104,-153.0,0.000249,3]
[380292692,1755639044114,-153.0,0.000249,3]
[380292693,1755639044125,-153.0,0.000249,3]
[380292694,1755639044134,-153.0,0.000249,3]
[380292695,1755639044143,-153.0,0.000249,3]
[380292696,1755639044152,-156.41520344,0.000249,3]
[380292697,1755639044162,-151.0,0.000249,7]
[380292698,1755639044172,-151.0,0.000249,7]
[380292699,1755639044181,-151.0,0.000249,7]
[380292700,1755639044190,-151.0,0.000249,7]
[380292701,1755639044199,-151.713914,0.000249,7]
[380292702,1755639044208,-151.0,0.000249,7]
[380292703,1755639044218,-236.598099,0.000249,7]
[380292704,1755639044227,-151.0,0.000249,7]
[380292705,1755639044237,-151.0,0.000249,7]
[380292706,1755639044246,-151.0,0.000249,7]
[380292707,1755639044255,-151.0,0.000249,7]
[380292708,1755639044264,-151.0,0.000249,7]
[380292709,1755639044273,-182.24416,0.000249,7]
[380292710,1755639044284,-151.0,0.000249,7]
[380292711,1755639044294,-151.0,0.000249,7]
[380292712,1755639044303,-151.0,0.000249,7]
[380292713,1755639044312,-151.0,0.000249,7]
[380292714,1755639044323,-151.0,0.000249,7]
[380292715,1755639044332,-71724.87906166,0.000249,2]
[380292721,1755639045732,-305.0,0.00024331,2]
[380292722,1755639045743,-332.6547183,0.00024548,2]
[380292723,1755639045753,-555.38732911,0.000249,2]
[380292724,1755639045807,-46.3285013,0.000249,2]
[380292725,1755639045818,-3303.95468031,0.000249,2]
[380292726,1755639045858,-43893.40587447,0.000249,2]
[380292730,1755639210729,267.435172,0.00013699,2]
[380292731,1755639313076,422.748628,0.000186,2]
[380292732,1755639625008,5000.0,0.000186,2]
[380292733,1755639641552,2912.47484839,0.000186,2]
[380292734,1755639642726,312.0163041,0.00018442,2]
[380292735,1755639724302,353.536496,0.00018312,2]
[380292736,1755640024248,3827.85092304,0.000186,2]
[380292737,1755640024273,749.40044896,0.000186,2]
[380292738,1755640027114,-302.45563732,0.000189,2]
[380292739,1755640027135,-1690.05758341,0.000189,2]
[380292740,1755640027157,-302.48582854,0.000189,2]
[380292741,1755640027178,-1200.0,0.00018984,2]
[380292742,1755640027200,-300.0,0.00018984,2]
[380292743,1755640027222,-302.9390346,0.00019089,2]
[380292744,1755640027247,-302.48582854,0.00019089,2]
[380292745,1755640027268,-300.0,0.00019177,2]
[380292746,1755640027291,-292.42356273,0.00019177,2]
[380292747,1755640078368,216.09282287,0.00018219,2]
[380292748,1755640168102,-301.80560079,0.000188,2]
[380292749,1755640168126,-1436.94402289,0.00019078,2]
[380292750,1755640168147,-300.0,0.00019176,2]
[380292751,1755640168169,-14958.46425084,0.00019177,2]
[380292752,1755640172705,269.296941,0.00013699,2]
[380292784,1755640232117,-1200.0,0.00019176,2]
[380292786,1755640232127,-300.0,0.00019176,2]
[380292788,1755640232136,-300.0,0.00019176,2]
[380292790,1755640232145,-35041.53574916,0.00019177,2]
[380292793,1755640232155,-500.0,0.00019177,2]
[380292795,1755640232164,-500.0,0.00019177,2]
[380292796,1755640232173,-500.0,0.00019177,2]
[380292798,1755640232183,-397.09092047,0.00019177,2]
[380292800,1755640232192,-500.0,0.00019177,2]
[380292802,1755640232201,-500.0,0.00019177,2]
[380292803,1755640232210,-500.0,0.00019177,2]
[380292805,1755640232219,-500.0,0.00019177,2]
[380292807,1755640232228,-542.92500441,0.00019177,2]
[380292809,1755640232238,-500.0,0.00019177,2]
[380292811,1755640232247,-500.0,0.00019177,2]
[380292813,1755640232256,-500.0,0.00019177,2]
[380292815,1755640232266,-500.0,0.00019177,2]
[380292817,1755640232275,-500.0,0.00019177,2]
[380292819,1755640232284,-500.0,0.00019177,2]
[380292820,1755640232293,-475.75737799,0.00019177,2]
[380292822,1755640232302,-500.0,0.00019177,2]
[380292824,1755640232311,-500.0,0.00019177,2]
[380292826,1755640232320,-500.0,0.00019177,2]
[380292828,1755640232329,-500.0,0.00019177,2]
[380292830,1755640232338,-194.86774506,0.00019177,2]
[380292832,1755640232347,-480.0,0.00019178,2]
[380292834,1755640232356,-460.0,0.00019178,2]
[380292836,1755640232366,-466.96709396,0.00019178,2]
[380292838,1755640232375,-480.0,0.00019178,2]
[380292840,1755640232384,-460.0,0.00019178,2]
[380292842,1755640232393,-480.0,0.00019178,2]
[380292844,1755640232403,-600.58,0.00019178,2]
[380292846,1755640232412,-460.0,0.00019178,2]
[380292847,1755640232422,-460.0,0.00019178,2]
[380292848,1755640232431,-480.0,0.00019178,2]
[380292850,1755640232440,-480.0,0.00019178,2]
[380292852,1755640232449,-480.0,0.00019178,2]
[380292854,1755640232458,-480.0,0.00019178,2]
[380292856,1755640232467,-480.0,0.00019178,2]